Workbook

Sheet Kraken
B2: =IF(C4<C12,"LONG",IF(C4>C12,"SHORT","Margin Trade Calculator")) -> SHORT | I2: Trade Balance | J2: 2000 | L2: Front Run Calculator
D3: DCA | I3: Max Loss Risk | J3: 0.1 | L3: =$L$7+($L$7*M3) -> 8856.353893 | M3: 0.00551
B4: Entry Price | C4: 9000 | E4: =((C6*C4)+(D6*D4))/(C6+D6) -> 9000 | F4: Position Volume | G4: =IFERROR(C6/C4,"") -> 0.754 | I4: Maker Fee | J4: 0.0012 | L4: =$L$7+($L$7*M4) -> 8837.857466 | M4: 0.00341
B5: Leverage | C5: 5 | E5: =((C6*C5)+(D6*D5))/(C6+D6) -> 5 | F5: Margin Size | G5: =IFERROR(C6/C5,"") -> 1357.2 | I5: Taker Fee | J5: 0.0022 | L5: =$L$7+($L$7*M5) -> 8826.407296 | M5: 0.00211
B6: Position Size | C6: 6786 | E6: =C6+D6 -> 6786 | F6: Margin Call (80%) | G6: 10212.51989 | H6: =(J2+(C6*((G4*IF(B2="SHORT",(G6*-1),G6))+IF(B2="SHORT",C6,(C6*-1)))/C6))/(C6/C5) -> 0.8 | L6: =$L$7+($L$7*M6) -> 8819.361038 | M6: 0.00131
C7: =(J2*J3)-F19 -> 0.00904 | F7: Liquidation (40%) | G7: 10932.51989 | H7: =(J2+(C6*((G4*IF(B2="SHORT",(G7*-1),G7))+IF(B2="SHORT",C6,(C6*-1)))/C6))/(C6/C5) -> 0.4 | I7: Finance Fee | J7: 0.0001 | L7: 8807.82279 | M7: target
B8: Order Type | C8: LM | F8: Break Even Price | G8: =IFERROR(((C6+(IF(B2="SHORT",(G13+G10)*-1,G13+G10)))/C6)*C4,"") -> 8807.82279 | I8: Rollover (h) | J8: 4 | L8: =$L$7+($L$7*M8) -> 8796.284542 | M8: -0.00131
B9: Expected Duration | C9: 720 | D9: hours | F9: =G8-G9 -> 0 | G9: 8807.82279 | L9: =$L$7+($L$7*M9) -> 8789.238284 | M9: -0.00211
F10: Estimated Finance | G10: =(CEILING(C9/J8,1)*J7)*C6 -> 122.148 | I10: Confidence | J10: 0.5 | L10: =$L$7+($L$7*M10) -> 8777.788114 | M10: -0.00341
D11: portion | E11: profit % | F11: Est. Fees @ Profit | G11: =(IF(OR(C8="LL",C8="LM"),J4,J5)*C6)+(IF(OR(C8="LL",C8="ML"),J4,J5)*(C6*(1+C16))) -> 25.06296 | L11: =$L$7+($L$7*M11) -> 8759.291686 | M11: -0.00551
B12: Profit Target 1 | C12: 7800 | D12: 1 | E12: =IFERROR(IF(D12>0,IF($B$2="LONG",(C12-$C$4),($C$4-C12))/$C$4,0),"") -> 0.1333333333 | F12: Est. Fees @ Loss | G12: =(IF(OR(C8="LL",C8="LM"),J4,J5)*C6)+(IF(OR(C8="LL",C8="ML"),J4,J5)*(C6*(1-G16))) -> 22.956284 | I12: Describe Trade Setup
B13: Profit Target 2 | D13: 0 | E13: =IFERROR(IF(D13>0,IF($B$2="LONG",(C13-$C$4),($C$4-C13))/$C$4,0),"") -> 0 | F13: Est. Fees @ Even | G13: =(IF(OR(C8="LL",C8="LM"),J4,J5)*C6)+(IF(OR(C8="LL",C8="ML"),J4,J5)*(C6*(G9/C4))) -> 22.75361644 | I13: What support/resistance, indicators, price action patterns, or other system was used to identify this trade setup?
B14: Profit Target 3 | D14: 0 | E14: =IFERROR(IF(D14>0,IF($B$2="LONG",(C14-$C$4),($C$4-C14))/$C$4,0),"") -> 0
B15: Profit Target 4 | D15: =100%-SUM(D12:D14) -> 0 | E15: =IFERROR(IF(D15>0,IF($B$2="LONG",(C15-$C$4),($C$4-C15))/$C$4,0),"") -> 0 | F15: Stop Loss | G15: 9070
B16: Blended Profit % | C16: =(E12*D12)+(E13*D13)+(E14*D14)+(E15*D15) -> 0.1333333333 | F16: Loss % (at stop) | G16: =IFERROR(IF(B2="LONG",(C4-G15),(G15-C4))/C4,"") -> 0.007777777778 | I16: Stop Loss Treatment | L16: Profit Taking Plan
I17: Hard (automated), soft (manual), open hedge (counter-future, 2nd instrument, covered call / protective put), etc… | L17: Limit order, trailing stop loss, laddered scale out, etc…
B18: Target Profit | D18: Risk Ratio | F18: Max Loss
B19: =IFERROR((C16*C6)-(G11+G10),"") -> 757.58904 | D19: =IFERROR(_xlfn.CONCAT(ROUND(B19/F19,2)," : 1"),"") -> 3.79 : 1 | F19: =IFERROR((G16*C6)+(G11+G10),"") -> 199.99096

Sheet BitMex
B2: =IF(C4<C12,"LONG",IF(C4>C12,"SHORT","Margin Trade Calculator")) -> LONG | I2: Equity at Entry | J2: =J3*C4 -> 11700 | L2: Front Run Calculator
D3: DCA | I3: Wallet Balance | J3: 1.3 | L3: =$L$7+($L$7*M3) -> 5960.66328 | M3: 0.00551
B4: Entry Price | C4: 9000 | E4: =((C6*C4)+(D6*D4))/(C6+D6) -> 9000 | F4: Position Volume | G4: =IFERROR(C6/C4,"") -> 0.3577777778 | I4: Max Loss Risk | J4: 0.02 | L4: =$L$7+($L$7*M4) -> 5948.21448 | M4: 0.00341
B5: Max Safe Leverage | C5: =IF(D5="",MIN(C6/F19,100),D5) -> 13.76199396 | F5: Margin Size | G5: =IFERROR(C6/C5/C4,"") -> 0.02599752469 | I5: Maker Fee | J5: -0.00025 | L5: =$L$7+($L$7*M5) -> 5940.50808 | M5: 0.00211
B6: Position Size | C6: 3220 | E6: =C6+D6 -> 3220 | F6: =_xlfn.CONCAT("Liq. Price at ",ROUND(C5,0)," lev") -> Liq. Price at 14 lev | G6: =IFERROR(ROUND((IF(B2="LONG",(C4) + ((C4) * (((1 / ((C5) + 1) * (-1)) * 100) + (((0.005) - (1 / (C5) * (0.005))) * 100))) / 100, (C4) + ((C4) * (((1 / ((C5) - 1)) * 100) - (((0.005) + (1 / (C5) * (0.005))) * 100))) / 100))/5,1)*5,"") -> 8432 | I6: Taker Fee | J6: 0.00075 | L6: =$L$7+($L$7*M6) -> 5935.76568 | M6: 0.00131
C7: =(J2*J4)-F19 -> 0.02227777778 | F7: Liq. Price on Cross | G7: =IFERROR(ROUND((IF(B2="LONG",(C4) + ((C4) * (((1 / ((C6/J2) + 1) * (-1)) * 100) + (((0.005) - (1 / (C6/J2) * (0.005))) * 100))) / 100, (C4) + ((C4) * (((1 / ((C6/J2) - 1)) * 100) - (((0.005) + (1 / (C6/J2) * (0.005))) * 100))) / 100))/5,1)*5,"") -> 1824 | I7: Est. Funding | J7: 0.00037 | L7: 5928 | M7: target
B8: Order Type | C8: LM | F8: Break Even Price | G8: =IFERROR(ROUND((((C6+(IF(B2="SHORT",(G13)*-1,G13)))/C6)*C4)/5,1)*5,"") -> 9001 | I8: Rollover (h) | J8: 8 | L8: =$L$7+($L$7*M8) -> 5920.23432 | M8: -0.00131
B9: Expected Duration | C9: 360 | D9: hours | F9: =G8-G9 -> 4786.527231 | G9: 4214.472769 | L9: =$L$7+($L$7*M9) -> 5915.49192 | M9: -0.00211
F10: Est. Funding | G10: =(CEILING(C9/J8,1)*J7)*C6 -> 53.613 | I10: Confidence | J10: 0.6 | L10: =$L$7+($L$7*M10) -> 5907.78552 | M10: -0.00341
D11: portion | E11: profit % | F11: Est. Fees @ Profit | G11: =(IF(OR(C8="LL",C8="LM"),J5,J6)*C6)+(IF(OR(C8="LL",C8="ML"),J5,J6)*(C6*(1+C16))) -> 1.878333333 | L11: =$L$7+($L$7*M11) -> 5895.33672 | M11: -0.00551
B12: Profit Target 1 | C12: 10000 | D12: 1 | E12: =IFERROR(IF(D12>0,IF($B$2="LONG",(C12-$C$4),($C$4-C12))/$C$4,0),"") -> 0.1111111111 | F12: Est. Fees @ Loss | G12: =(IF(OR(C8="LL",C8="LM"),J5,J6)*C6)+(IF(OR(C8="LL",C8="ML"),J5,J6)*(C6*(1-G16))) -> 1.475833333 | I12: Describe Trade Setup
B13: Profit Target 2 | D13: 0 | E13: =IFERROR(IF(D13>0,IF($B$2="LONG",(C13-$C$4),($C$4-C13))/$C$4,0),"") -> 0 | F13: Est. Fees @ Even | G13: =(IF(OR(C8="LL",C8="LM"),J5,J6)*C6)+(IF(OR(C8="LL",C8="ML"),J5,J6)*(C6*(G9/C4))) -> 0.3258835264 | I13: What support/resistance, indicators, price action patterns, or other system was used to identify this trade setup?
B14: Profit Target 3 | D14: 0 | E14: =IFERROR(IF(D14>0,IF($B$2="LONG",(C14-$C$4),($C$4-C14))/$C$4,0),"") -> 0
B15: Profit Target 4 | D15: =100%-SUM(D12:D14) -> 0 | E15: =IFERROR(IF(D15>0,IF($B$2="LONG",(C15-$C$4),($C$4-C15))/$C$4,0),"") -> 0 | F15: Stop Loss | G15: 8500
B16: Blended Profit % | C16: =(E12*D12)+(E13*D13)+(E14*D14)+(E15*D15) -> 0.1111111111 | F16: Loss % (at stop) | G16: =IFERROR(IF(B2="LONG",(C4-G15),(G15-C4))/C4,"") -> 0.05555555556 | I16: Stop Loss Treatment | L16: Profit Taking Plan
I17: Hard (automated), soft (manual), open hedge (counter-future, 2nd instrument, covered call / protective put), etc… | L17: Limit order, trailing stop loss, laddered scale out, etc…
B18: Target Profit | D18: Risk Ratio | F18: Max Loss
B19: =IFERROR((C16*C6)-(G11+G10),"") -> 302.2864444 | D19: =IFERROR(_xlfn.CONCAT(ROUND(B19/F19,2)," : 1"),"") -> 1.29 : 1 | F19: =IFERROR((G16*C6)+(G12+G10),"") -> 233.9777222

Sheet Kelly
B1: Kelly Criterion / Ratio | K1: 0.125
C4: Win Rate Percentage (e.g. 40%) | E4: 0.4
C6: Average Reward to Risk Ratio (e.g. 4.0 = 4:1) | E6: 3
C9: Kelly Ratio | E9: =IFERROR(((((E4*(E6+1))-1)/E6)),"") -> 0.2
E10: =IF(E9<0,"Negative Expectancy, do not trade.","") -> 
E11: =IF($E$9>0, _xlfn.CONCAT((ROUND($E$9/2*100, 0)),"% Half Kelly"),"") -> 10% Half Kelly
E12: =IF($E$9>0, _xlfn.CONCAT((ROUND($E$9/4*100, 0)),"% Quarter Kelly"),"") -> 5% Quarter Kelly
C13: * recommended risk per trade is a quarter Kelly

Sheet README
B1: Notes, Credits, and Donations | I1: Version | J1: 0.95
B3: This spreadsheet was created by Kevin Dostalek (CryptoKick) over the course of 2017-2019 to assist with trading in both bull and bear market conditions. Understanding your risk and reward potential is critical for a disciplined aproach to trading consistency.
B5: If you find the work done here helpful and would like to give something back to the author, please consider donating below or simply using some of the author's affiliate links, which does not cost you anything. In fact you usually gain discounts from doing it, but it also gives the author some support for his efforts. There are also courses available (see below).
B7: DONATE BTC | C7: 3Jm5rSbCQVHYSgVB1oqFPkpBv7ypCTyFGi
B8: DONATE XLM | C8: GAZEQP3RT2ESNCSF3CDFM743FDKLBWFU4LW47UWMKZPKP26ZXOUEHBR4
B10: TradingView Affiliate Link | C10: https://tradingview.go2cloud.org/SH3fT
B11: CoinTracking Affiliate Link | C11: https://cointracking.info?ref=K754189
B12: BitMEX Affiliate Link | C12: https://www.bitmex.com/register/mEiVy5
B17: UDEMY Courses
B19: I currently have 1 course live on Udemy with plans for additional courses in the coming months. Here are the first two, please visit the link below to get DISCOUNT CODES for major % off retail prices.
B21: Creating Custom Indicators in TradingView with PineScript
B22: Creating TradingView Strategies for Backtesting and Automation
B24: You can find a full list of current and upcoming course (along with discount codes) at:
B25: http://kickstudios.com/courses
B27: Thank you for reading and considering supporting my work! If you donated/used link/bought course and don't care about being annonymous, please drop me a note at tips@kickstudios.com so I can personally thank you!
C29: The most current version of this spreadsheet tool can always be found at | D29: http://kickstudios.com/tools
